Workbook

Sheet 결혼식 예산
B2: LISHA + DANIEL 관계 맺기
B5: 범주 | C5: 예상 비용 | D5: 실제 비용 | E5: 차이 | F5: 예산 % | J5: 정렬 안 됨 | K5: 예상 비용 | L5: 실제 비용 | M5: 예상 비용 - 순위 값 | N5: 순위 | O5: # | P5: 정렬됨
B6: =P6 -> 피로연 | C6: =VLOOKUP(TBL_Summary[[#This Row],[범주]],TBL_RankingData,2,FALSE) -> ₩14,500 | D6: =IF(VLOOKUP(TBL_Summary[[#This Row],[범주]],TBL_RankingData,3,FALSE)=0,"",VLOOKUP(TBL_Summary[[#This Row],[범주]],TBL_RankingData,3,FALSE)) -> ₩12,800 | E6: =IF(OR(TBL_Summary[[#This Row],[예상 비용]]="",TBL_Summary[[#This Row],[실제 비용]]=""),"",TBL_Summary[[#This Row],[예상 비용]]-TBL_Summary[[#This Row],[실제 비용]]) -> ₩1,700 | F6: =TBL_Summary[[#This Row],[예상 비용]]/SUM(TBL_Summary[예상 비용]) -> 48.7% | J6: 피로연 | K6: =TBL_Reception[[#Totals],[예상]] -> 14500 | L6: =TBL_Reception[[#Totals],[실제]] -> 12800 | M6: =K6-O6/100 -> 14499.99 | N6: =_xlfn.RANK.AVG(M6,$M$6:$M$15) -> 1 | O6: 1 | P6: =INDEX(TBL_RankingData,MATCH(O6,$N$6:$N$15,0),1) -> 피로연
B7: =P7 -> 복장 | C7: =VLOOKUP(TBL_Summary[[#This Row],[범주]],TBL_RankingData,2,FALSE) -> ₩4,000 | D7: =IF(VLOOKUP(TBL_Summary[[#This Row],[범주]],TBL_RankingData,3,FALSE)=0,"",VLOOKUP(TBL_Summary[[#This Row],[범주]],TBL_RankingData,3,FALSE)) -> ₩2,900 | E7: =IF(OR(TBL_Summary[[#This Row],[예상 비용]]="",TBL_Summary[[#This Row],[실제 비용]]=""),"",TBL_Summary[[#This Row],[예상 비용]]-TBL_Summary[[#This Row],[실제 비용]]) -> ₩1,100 | F7: =TBL_Summary[[#This Row],[예상 비용]]/SUM(TBL_Summary[예상 비용]) -> 13.4% | J7: 복장 | K7: =TBL_Attire[[#Totals],[예상]] -> 4000 | L7: =TBL_Attire[[#Totals],[실제]] -> 2900 | M7: =K7-O7/100 -> 3999.98 | N7: 2 | O7: 2 | P7: 복장
B8: 꽃과 장식 | C8: =VLOOKUP(TBL_Summary[[#This Row],[범주]],TBL_RankingData,2,FALSE) -> ₩3,000 | D8: =IF(VLOOKUP(TBL_Summary[[#This Row],[범주]],TBL_RankingData,3,FALSE)=0,"",VLOOKUP(TBL_Summary[[#This Row],[범주]],TBL_RankingData,3,FALSE)) ->  | E8: =IF(OR(TBL_Summary[[#This Row],[예상 비용]]="",TBL_Summary[[#This Row],[실제 비용]]=""),"",TBL_Summary[[#This Row],[예상 비용]]-TBL_Summary[[#This Row],[실제 비용]]) ->  | F8: =TBL_Summary[[#This Row],[예상 비용]]/SUM(TBL_Summary[예상 비용]) -> 10.1% | J8: 꽃과 장식 | K8: =TBL_FlowersAndDecor[[#Totals],[예상]] -> 3000 | L8: =TBL_FlowersAndDecor[[#Totals],[실제]] -> 0 | M8: 2999.97 | N8: 3 | O8: 3 | P8: 꽃과 장식
B9: 사진 및 비디오 | C9: =VLOOKUP(TBL_Summary[[#This Row],[범주]],TBL_RankingData,2,FALSE) -> ₩2,500 | D9: =IF(VLOOKUP(TBL_Summary[[#This Row],[범주]],TBL_RankingData,3,FALSE)=0,"",VLOOKUP(TBL_Summary[[#This Row],[범주]],TBL_RankingData,3,FALSE)) ->  | E9: =IF(OR(TBL_Summary[[#This Row],[예상 비용]]="",TBL_Summary[[#This Row],[실제 비용]]=""),"",TBL_Summary[[#This Row],[예상 비용]]-TBL_Summary[[#This Row],[실제 비용]]) ->  | F9: =TBL_Summary[[#This Row],[예상 비용]]/SUM(TBL_Summary[예상 비용]) -> 8.4% | J9: 음악 | K9: =TBL_Music[[#Totals],[예상]] -> 1800 | L9: =TBL_Music[[#Totals],[실제]] -> 0 | M9: 1799.96 | N9: 5 | O9: 4 | P9: 사진 및 비디오
B10: 음악 | C10: =VLOOKUP(TBL_Summary[[#This Row],[범주]],TBL_RankingData,2,FALSE) -> ₩1,800 | D10: =IF(VLOOKUP(TBL_Summary[[#This Row],[범주]],TBL_RankingData,3,FALSE)=0,"",VLOOKUP(TBL_Summary[[#This Row],[범주]],TBL_RankingData,3,FALSE)) ->  | E10: =IF(OR(TBL_Summary[[#This Row],[예상 비용]]="",TBL_Summary[[#This Row],[실제 비용]]=""),"",TBL_Summary[[#This Row],[예상 비용]]-TBL_Summary[[#This Row],[실제 비용]]) ->  | F10: =TBL_Summary[[#This Row],[예상 비용]]/SUM(TBL_Summary[예상 비용]) -> 6.1% | J10: 사진 및 비디오 | K10: =TBL_PhotographsAndVideo[[#Totals],[예상]] -> 2500 | L10: =TBL_PhotographsAndVideo[[#Totals],[실제]] -> 0 | M10: 2499.95 | N10: 4 | O10: 5 | P10: 음악
B11: 경품과 선물 | C11: =VLOOKUP(TBL_Summary[[#This Row],[범주]],TBL_RankingData,2,FALSE) -> ₩1,100 | D11: =IF(VLOOKUP(TBL_Summary[[#This Row],[범주]],TBL_RankingData,3,FALSE)=0,"",VLOOKUP(TBL_Summary[[#This Row],[범주]],TBL_RankingData,3,FALSE)) ->  | E11: =IF(OR(TBL_Summary[[#This Row],[예상 비용]]="",TBL_Summary[[#This Row],[실제 비용]]=""),"",TBL_Summary[[#This Row],[예상 비용]]-TBL_Summary[[#This Row],[실제 비용]]) ->  | F11: =TBL_Summary[[#This Row],[예상 비용]]/SUM(TBL_Summary[예상 비용]) -> 3.7% | J11: 경품과 선물 | K11: =TBL_FavorsAndGifts[[#Totals],[예상]] -> 1100 | L11: =TBL_FavorsAndGifts[[#Totals],[실제]] -> 0 | M11: 1099.94 | N11: 6 | O11: 6 | P11: 경품과 선물
B12: =P12 -> 결혼 반지 | C12: =VLOOKUP(TBL_Summary[[#This Row],[범주]],TBL_RankingData,2,FALSE) -> ₩1,100 | D12: =IF(VLOOKUP(TBL_Summary[[#This Row],[범주]],TBL_RankingData,3,FALSE)=0,"",VLOOKUP(TBL_Summary[[#This Row],[범주]],TBL_RankingData,3,FALSE)) ->  | E12: =IF(OR(TBL_Summary[[#This Row],[예상 비용]]="",TBL_Summary[[#This Row],[실제 비용]]=""),"",TBL_Summary[[#This Row],[예상 비용]]-TBL_Summary[[#This Row],[실제 비용]]) ->  | F12: =TBL_Summary[[#This Row],[예상 비용]]/SUM(TBL_Summary[예상 비용]) -> 3.7% | J12: 식 | K12: =TBL_Ceremony[[#Totals],[예상]] -> 800 | L12: =TBL_Ceremony[[#Totals],[실제]] -> 0 | M12: 799.93 | N12: 8 | O12: 7 | P12: 결혼 반지
B13: 식 | C13: =VLOOKUP(TBL_Summary[[#This Row],[범주]],TBL_RankingData,2,FALSE) -> ₩800 | D13: =IF(VLOOKUP(TBL_Summary[[#This Row],[범주]],TBL_RankingData,3,FALSE)=0,"",VLOOKUP(TBL_Summary[[#This Row],[범주]],TBL_RankingData,3,FALSE)) ->  | E13: =IF(OR(TBL_Summary[[#This Row],[예상 비용]]="",TBL_Summary[[#This Row],[실제 비용]]=""),"",TBL_Summary[[#This Row],[예상 비용]]-TBL_Summary[[#This Row],[실제 비용]]) ->  | F13: =TBL_Summary[[#This Row],[예상 비용]]/SUM(TBL_Summary[예상 비용]) -> 2.7% | J13: 문구용품 | K13: =TBL_Stationery[[#Totals],[예상]] -> 500 | L13: =TBL_Stationery[[#Totals],[실제]] -> 0 | M13: 499.92 | N13: 9 | O13: 8 | P13: 식
B14: 문구용품 | C14: =VLOOKUP(TBL_Summary[[#This Row],[범주]],TBL_RankingData,2,FALSE) -> ₩500 | D14: =IF(VLOOKUP(TBL_Summary[[#This Row],[범주]],TBL_RankingData,3,FALSE)=0,"",VLOOKUP(TBL_Summary[[#This Row],[범주]],TBL_RankingData,3,FALSE)) ->  | E14: =IF(OR(TBL_Summary[[#This Row],[예상 비용]]="",TBL_Summary[[#This Row],[실제 비용]]=""),"",TBL_Summary[[#This Row],[예상 비용]]-TBL_Summary[[#This Row],[실제 비용]]) ->  | F14: =TBL_Summary[[#This Row],[예상 비용]]/SUM(TBL_Summary[예상 비용]) -> 1.7% | J14: 결혼 반지 | K14: =TBL_WeddingRings[[#Totals],[예상]] -> 1100 | L14: =TBL_WeddingRings[[#Totals],[실제]] -> 0 | M14: 1099.91 | N14: 7 | O14: 9 | P14: 문구용품
B15: 교통비 | C15: =VLOOKUP(TBL_Summary[[#This Row],[범주]],TBL_RankingData,2,FALSE) -> ₩450 | D15: =IF(VLOOKUP(TBL_Summary[[#This Row],[범주]],TBL_RankingData,3,FALSE)=0,"",VLOOKUP(TBL_Summary[[#This Row],[범주]],TBL_RankingData,3,FALSE)) ->  | E15: =IF(OR(TBL_Summary[[#This Row],[예상 비용]]="",TBL_Summary[[#This Row],[실제 비용]]=""),"",TBL_Summary[[#This Row],[예상 비용]]-TBL_Summary[[#This Row],[실제 비용]]) ->  | F15: =TBL_Summary[[#This Row],[예상 비용]]/SUM(TBL_Summary[예상 비용]) -> 1.5% | J15: 교통비 | K15: =TBL_Transportation[[#Totals],[예상]] -> 450 | L15: =TBL_Transportation[[#Totals],[실제]] -> 0 | M15: 449.9 | N15: 10 | O15: 10 | P15: 교통비
B16: 요약 | C16: =SUBTOTAL(109,TBL_Summary[예상 비용]) -> ₩29,750 | D16: =SUBTOTAL(109,TBL_Summary[실제 비용]) -> ₩15,700 | E16: =TBL_Summary[[#Totals],[예상 비용]]-TBL_Summary[[#Totals],[실제 비용]] -> ₩14,050 | F16: =SUBTOTAL(109,TBL_Summary[예산 %]) -> 100%

Sheet 예산 세부 정보
B2: 예산 세부 정보
B4: 피로연 | C4: 예상 | D4: 실제 | E4: 차이
B5: 장소와 렌탈 | C5: ₩8,000.00 | D5: ₩7,800.00 | E5: =IF(OR(TBL_Reception[[#This Row],[예상]]="",TBL_Reception[[#This Row],[실제]]=""),"",TBL_Reception[[#This Row],[예상]]-TBL_Reception[[#This Row],[실제]]) -> ₩200.00
B6: 음식 및 서비스 | C6: ₩4,000.00 | D6: ₩4,200.00 | E6: =IF(OR(TBL_Reception[[#This Row],[예상]]="",TBL_Reception[[#This Row],[실제]]=""),"",TBL_Reception[[#This Row],[예상]]-TBL_Reception[[#This Row],[실제]]) -> (₩200.00)
B7: 음료 | C7: ₩1,000.00 | D7: ₩800.00 | E7: =IF(OR(TBL_Reception[[#This Row],[예상]]="",TBL_Reception[[#This Row],[실제]]=""),"",TBL_Reception[[#This Row],[예상]]-TBL_Reception[[#This Row],[실제]]) -> ₩200.00
B8: 케이크 | C8: ₩1,000.00 | E8: =IF(OR(TBL_Reception[[#This Row],[예상]]="",TBL_Reception[[#This Row],[실제]]=""),"",TBL_Reception[[#This Row],[예상]]-TBL_Reception[[#This Row],[실제]]) -> 
B9: 잡비 | C9: ₩500.00 | E9: =IF(OR(TBL_Reception[[#This Row],[예상]]="",TBL_Reception[[#This Row],[실제]]=""),"",TBL_Reception[[#This Row],[예상]]-TBL_Reception[[#This Row],[실제]]) -> 
B10: 피로연 합계 | C10: =SUBTOTAL(109,TBL_Reception[예상]) -> ₩14,500.00 | D10: =SUBTOTAL(109,TBL_Reception[실제]) -> ₩12,800.00 | E10: =TBL_Reception[[#Totals],[예상]]-TBL_Reception[[#Totals],[실제]] -> ₩1,700.00
B13: 복장 | C13: 예상 | D13: 실제 | E13: 차이
B14: 턱시도, 수트 및/또는 드레스 | C14: ₩3,000.00 | D14: ₩2,900.00 | E14: =IF(OR(TBL_Attire[[#This Row],[예상]]="",TBL_Attire[[#This Row],[실제]]=""),"",TBL_Attire[[#This Row],[예상]]-TBL_Attire[[#This Row],[실제]]) -> ₩100.00
B15: 수선 | C15: ₩100.00 | E15: =IF(OR(TBL_Attire[[#This Row],[예상]]="",TBL_Attire[[#This Row],[실제]]=""),"",TBL_Attire[[#This Row],[예상]]-TBL_Attire[[#This Row],[실제]]) -> 
B16: 머리장식 및 베일 | C16: ₩200.00 | E16: =IF(OR(TBL_Attire[[#This Row],[예상]]="",TBL_Attire[[#This Row],[실제]]=""),"",TBL_Attire[[#This Row],[예상]]-TBL_Attire[[#This Row],[실제]]) -> 
B17: 액세서리 | C17: ₩100.00 | E17: =IF(OR(TBL_Attire[[#This Row],[예상]]="",TBL_Attire[[#This Row],[실제]]=""),"",TBL_Attire[[#This Row],[예상]]-TBL_Attire[[#This Row],[실제]]) -> 
B18: 헤어 및 메이크업 | C18: ₩500.00 | E18: =IF(OR(TBL_Attire[[#This Row],[예상]]="",TBL_Attire[[#This Row],[실제]]=""),"",TBL_Attire[[#This Row],[예상]]-TBL_Attire[[#This Row],[실제]]) -> 
B19: 잡비 | C19: ₩100.00 | E19: =IF(OR(TBL_Attire[[#This Row],[예상]]="",TBL_Attire[[#This Row],[실제]]=""),"",TBL_Attire[[#This Row],[예상]]-TBL_Attire[[#This Row],[실제]]) -> 
B20: 복장 합계 | C20: =SUBTOTAL(109,TBL_Attire[예상]) -> ₩4,000.00 | D20: =SUBTOTAL(109,TBL_Attire[실제]) -> ₩2,900.00 | E20: =TBL_Attire[[#Totals],[예상]]-TBL_Attire[[#Totals],[실제]] -> ₩1,100.00
B23: 꽃과 장식 | C23: 예상 | D23: 실제 | E23: 차이
B24: 식장 꽃꽃이 | C24: ₩1,000.00 | E24: =IF(OR(TBL_FlowersAndDecor[[#This Row],[예상]]="",TBL_FlowersAndDecor[[#This Row],[실제]]=""),"",TBL_FlowersAndDecor[[#This Row],[예상]]-TBL_FlowersAndDecor[[#This Row],[실제]]) -> 
B25: 꽃 소녀의 꽃봉오리 및 바구니 | C25: ₩500.00 | E25: =IF(OR(TBL_FlowersAndDecor[[#This Row],[예상]]="",TBL_FlowersAndDecor[[#This Row],[실제]]=""),"",TBL_FlowersAndDecor[[#This Row],[예상]]-TBL_FlowersAndDecor[[#This Row],[실제]]) -> 
B26: 반지 베개 | C26: ₩100.00 | E26: =IF(OR(TBL_FlowersAndDecor[[#This Row],[예상]]="",TBL_FlowersAndDecor[[#This Row],[실제]]=""),"",TBL_FlowersAndDecor[[#This Row],[예상]]-TBL_FlowersAndDecor[[#This Row],[실제]]) -> 
B27: 부케 | C27: ₩500.00 | E27: =IF(OR(TBL_FlowersAndDecor[[#This Row],[예상]]="",TBL_FlowersAndDecor[[#This Row],[실제]]=""),"",TBL_FlowersAndDecor[[#This Row],[예상]]-TBL_FlowersAndDecor[[#This Row],[실제]]) -> 
B28: 부토니에르 | C28: ₩100.00 | E28: =IF(OR(TBL_FlowersAndDecor[[#This Row],[예상]]="",TBL_FlowersAndDecor[[#This Row],[실제]]=""),"",TBL_FlowersAndDecor[[#This Row],[예상]]-TBL_FlowersAndDecor[[#This Row],[실제]]) -> 
B29: 코르사주 | C29: ₩200.00 | E29: =IF(OR(TBL_FlowersAndDecor[[#This Row],[예상]]="",TBL_FlowersAndDecor[[#This Row],[실제]]=""),"",TBL_FlowersAndDecor[[#This Row],[예상]]-TBL_FlowersAndDecor[[#This Row],[실제]]) -> 
B30: 피로연 장식 | C30: ₩300.00 | E30: =IF(OR(TBL_FlowersAndDecor[[#This Row],[예상]]="",TBL_FlowersAndDecor[[#This Row],[실제]]=""),"",TBL_FlowersAndDecor[[#This Row],[예상]]-TBL_FlowersAndDecor[[#This Row],[실제]]) -> 
B31: 조명 | C31: ₩200.00 | E31: =IF(OR(TBL_FlowersAndDecor[[#This Row],[예상]]="",TBL_FlowersAndDecor[[#This Row],[실제]]=""),"",TBL_FlowersAndDecor[[#This Row],[예상]]-TBL_FlowersAndDecor[[#This Row],[실제]]) -> 
B32: 잡비 | C32: ₩100.00 | E32: =IF(OR(TBL_FlowersAndDecor[[#This Row],[예상]]="",TBL_FlowersAndDecor[[#This Row],[실제]]=""),"",TBL_FlowersAndDecor[[#This Row],[예상]]-TBL_FlowersAndDecor[[#This Row],[실제]]) -> 
B33: 꽃과 장식 합계 | C33: =SUBTOTAL(109,TBL_FlowersAndDecor[예상]) -> ₩3,000.00 | D33: =SUBTOTAL(109,TBL_FlowersAndDecor[실제]) -> ₩0.00 | E33: =TBL_FlowersAndDecor[[#Totals],[예상]]-TBL_FlowersAndDecor[[#Totals],[실제]] -> ₩3,000.00
B36: 음악 | C36: 예상 | D36: 실제 | E36: 차이
B37: 축가 가수 | C37: ₩700.00 | E37: =IF(OR(TBL_Music[[#This Row],[예상]]="",TBL_Music[[#This Row],[실제]]=""),"",TBL_Music[[#This Row],[예상]]-TBL_Music[[#This Row],[실제]]) -> 
B38: 칵테일-타임 가수 | C38: ₩300.00 | E38: =IF(OR(TBL_Music[[#This Row],[예상]]="",TBL_Music[[#This Row],[실제]]=""),"",TBL_Music[[#This Row],[예상]]-TBL_Music[[#This Row],[실제]]) -> 
B39: 피로연 밴드, 디제이, 및 엔터테인먼트 | C39: ₩200.00 | E39: =IF(OR(TBL_Music[[#This Row],[예상]]="",TBL_Music[[#This Row],[실제]]=""),"",TBL_Music[[#This Row],[예상]]-TBL_Music[[#This Row],[실제]]) -> 
B40: 사운드-시스템 및 댄스-무대 렌탈 | C40: ₩400.00 | E40: =IF(OR(TBL_Music[[#This Row],[예상]]="",TBL_Music[[#This Row],[실제]]=""),"",TBL_Music[[#This Row],[예상]]-TBL_Music[[#This Row],[실제]]) -> 
B41: 잡비 | C41: ₩200.00 | E41: =IF(OR(TBL_Music[[#This Row],[예상]]="",TBL_Music[[#This Row],[실제]]=""),"",TBL_Music[[#This Row],[예상]]-TBL_Music[[#This Row],[실제]]) -> 
B42: 음악 합계 | C42: =SUBTOTAL(109,TBL_Music[예상]) -> ₩1,800.00 | D42: =SUBTOTAL(109,TBL_Music[실제]) -> ₩0.00 | E42: =TBL_Music[[#Totals],[예상]]-TBL_Music[[#Totals],[실제]] -> ₩1,800.00
B45: 사진 및 비디오 | C45: 예상 | D45: 실제 | E45: 차이
B46: 사진 | C46: ₩1,000.00 | E46: =IF(OR(TBL_PhotographsAndVideo[[#This Row],[예상]]="",TBL_PhotographsAndVideo[[#This Row],[실제]]=""),"",TBL_PhotographsAndVideo[[#This Row],[예상]]-TBL_PhotographsAndVideo[[#This Row],[실제]]) -> 
B47: 비디오 | C47: ₩800.00 | E47: =IF(OR(TBL_PhotographsAndVideo[[#This Row],[예상]]="",TBL_PhotographsAndVideo[[#This Row],[실제]]=""),"",TBL_PhotographsAndVideo[[#This Row],[예상]]-TBL_PhotographsAndVideo[[#This Row],[실제]]) -> 
B48: 추가 인쇄 및 앨범 | C48: ₩500.00 | E48: =IF(OR(TBL_PhotographsAndVideo[[#This Row],[예상]]="",TBL_PhotographsAndVideo[[#This Row],[실제]]=""),"",TBL_PhotographsAndVideo[[#This Row],[예상]]-TBL_PhotographsAndVideo[[#This Row],[실제]]) -> 
B49: 잡비 | C49: ₩200.00 | E49: =IF(OR(TBL_PhotographsAndVideo[[#This Row],[예상]]="",TBL_PhotographsAndVideo[[#This Row],[실제]]=""),"",TBL_PhotographsAndVideo[[#This Row],[예상]]-TBL_PhotographsAndVideo[[#This Row],[실제]]) -> 
B50: 사진 및 비디오 합계 | C50: =SUBTOTAL(109,TBL_PhotographsAndVideo[예상]) -> ₩2,500.00 | D50: =SUBTOTAL(109,TBL_PhotographsAndVideo[실제]) -> ₩0.00 | E50: =TBL_PhotographsAndVideo[[#Totals],[예상]]-TBL_PhotographsAndVideo[[#Totals],[실제]] -> ₩2,500.00
B53: 경품 및 선물 | C53: 예상 | D53: 실제 | E53: 차이
B54: 웰컴 기프트 | C54: ₩700.00 | E54: =IF(OR(TBL_FavorsAndGifts[[#This Row],[예상]]="",TBL_FavorsAndGifts[[#This Row],[실제]]=""),"",TBL_FavorsAndGifts[[#This Row],[예상]]-TBL_FavorsAndGifts[[#This Row],[실제]]) -> 
B55: 파티 선물 | C55: ₩200.00 | E55: =IF(OR(TBL_FavorsAndGifts[[#This Row],[예상]]="",TBL_FavorsAndGifts[[#This Row],[실제]]=""),"",TBL_FavorsAndGifts[[#This Row],[예상]]-TBL_FavorsAndGifts[[#This Row],[실제]]) -> 
B56: 잡비 | C56: ₩200.00 | E56: =IF(OR(TBL_FavorsAndGifts[[#This Row],[예상]]="",TBL_FavorsAndGifts[[#This Row],[실제]]=""),"",TBL_FavorsAndGifts[[#This Row],[예상]]-TBL_FavorsAndGifts[[#This Row],[실제]]) -> 
B57: 경품 및 선물 합계 | C57: =SUBTOTAL(109,TBL_FavorsAndGifts[예상]) -> ₩1,100.00 | D57: =SUBTOTAL(109,TBL_FavorsAndGifts[실제]) -> ₩0.00 | E57: =TBL_FavorsAndGifts[[#Totals],[예상]]-TBL_FavorsAndGifts[[#Totals],[실제]] -> ₩1,100.00
B60: 예식 | C60: 예상 | D60: 실제 | E60: 차이
B61: 장소 대관료 | C61: ₩500.00 | E61: =IF(OR(TBL_Ceremony[[#This Row],[예상]]="",TBL_Ceremony[[#This Row],[실제]]=""),"",TBL_Ceremony[[#This Row],[예상]]-TBL_Ceremony[[#This Row],[실제]]) -> 
B62: 주례 비용 또는 교회 기부 | C62: ₩200.00 | E62: =IF(OR(TBL_Ceremony[[#This Row],[예상]]="",TBL_Ceremony[[#This Row],[실제]]=""),"",TBL_Ceremony[[#This Row],[예상]]-TBL_Ceremony[[#This Row],[실제]]) -> 
B63: 잡비 | C63: ₩100.00 | E63: =IF(OR(TBL_Ceremony[[#This Row],[예상]]="",TBL_Ceremony[[#This Row],[실제]]=""),"",TBL_Ceremony[[#This Row],[예상]]-TBL_Ceremony[[#This Row],[실제]]) -> 
B64: 전체 예식 | C64: =SUBTOTAL(109,TBL_Ceremony[예상]) -> ₩800.00 | D64: =SUBTOTAL(109,TBL_Ceremony[실제]) -> ₩0.00 | E64: =TBL_Ceremony[[#Totals],[예상]]-TBL_Ceremony[[#Totals],[실제]] -> ₩800.00
B67: 편지지 | C67: 예상 | D67: 실제 | E67: 차이
B68: 청첩장 | C68: ₩50.00 | E68: =IF(OR(TBL_Stationery[[#This Row],[예상]]="",TBL_Stationery[[#This Row],[실제]]=""),"",TBL_Stationery[[#This Row],[예상]]-TBL_Stationery[[#This Row],[실제]]) -> 
B69: 초대장 및 회신 요청 | C69: ₩100.00 | E69: =IF(OR(TBL_Stationery[[#This Row],[예상]]="",TBL_Stationery[[#This Row],[실제]]=""),"",TBL_Stationery[[#This Row],[예상]]-TBL_Stationery[[#This Row],[실제]]) -> 
B70: 식순 | C70: ₩50.00 | E70: =IF(OR(TBL_Stationery[[#This Row],[예상]]="",TBL_Stationery[[#This Row],[실제]]=""),"",TBL_Stationery[[#This Row],[예상]]-TBL_Stationery[[#This Row],[실제]]) -> 
B71: 좌석 및 장소 카드 | C71: ₩50.00 | E71: =IF(OR(TBL_Stationery[[#This Row],[예상]]="",TBL_Stationery[[#This Row],[실제]]=""),"",TBL_Stationery[[#This Row],[예상]]-TBL_Stationery[[#This Row],[실제]]) -> 
B72: 메뉴 카드 | C72: ₩50.00 | E72: =IF(OR(TBL_Stationery[[#This Row],[예상]]="",TBL_Stationery[[#This Row],[실제]]=""),"",TBL_Stationery[[#This Row],[예상]]-TBL_Stationery[[#This Row],[실제]]) -> 
B73: 감사장 | C73: ₩50.00 | E73: =IF(OR(TBL_Stationery[[#This Row],[예상]]="",TBL_Stationery[[#This Row],[실제]]=""),"",TBL_Stationery[[#This Row],[예상]]-TBL_Stationery[[#This Row],[실제]]) -> 
B74: 우편요금 | C74: ₩50.00 | E74: =IF(OR(TBL_Stationery[[#This Row],[예상]]="",TBL_Stationery[[#This Row],[실제]]=""),"",TBL_Stationery[[#This Row],[예상]]-TBL_Stationery[[#This Row],[실제]]) -> 
B75: 잡비 | C75: ₩100.00 | E75: =IF(OR(TBL_Stationery[[#This Row],[예상]]="",TBL_Stationery[[#This Row],[실제]]=""),"",TBL_Stationery[[#This Row],[예상]]-TBL_Stationery[[#This Row],[실제]]) -> 
B76: 편지지 합계 | C76: =SUBTOTAL(109,TBL_Stationery[예상]) -> ₩500.00 | D76: =SUBTOTAL(109,TBL_Stationery[실제]) -> ₩0.00 | E76: =TBL_Stationery[[#Totals],[예상]]-TBL_Stationery[[#Totals],[실제]] -> ₩500.00
B79: 결혼 반지 | C79: 예상 | D79: 실제 | E79: 차이
B80: 결혼 반지 | C80: ₩1,000.00 | E80: =IF(OR(TBL_WeddingRings[[#This Row],[예상]]="",TBL_WeddingRings[[#This Row],[실제]]=""),"",TBL_WeddingRings[[#This Row],[예상]]-TBL_WeddingRings[[#This Row],[실제]]) -> 
B81: 반지 액세서리 | C81: ₩100.00 | E81: =IF(OR(TBL_WeddingRings[[#This Row],[예상]]="",TBL_WeddingRings[[#This Row],[실제]]=""),"",TBL_WeddingRings[[#This Row],[예상]]-TBL_WeddingRings[[#This Row],[실제]]) -> 
B82: 결혼 반지 합계 | C82: =SUBTOTAL(109,TBL_WeddingRings[예상]) -> ₩1,100.00 | D82: =SUBTOTAL(109,TBL_WeddingRings[실제]) -> ₩0.00 | E82: =TBL_WeddingRings[[#Totals],[예상]]-TBL_WeddingRings[[#Totals],[실제]] -> ₩1,100.00
B85: 교통편 | C85: 예상 | D85: 실제 | E85: 차이
B86: 메인 차량 렌탈 | C86: ₩100.00 | E86: =IF(OR(TBL_Transportation[[#This Row],[예상]]="",TBL_Transportation[[#This Row],[실제]]=""),"",TBL_Transportation[[#This Row],[예상]]-TBL_Transportation[[#This Row],[실제]]) -> 
B87: 게스트 차량 렌탈 | C87: ₩100.00 | E87: =IF(OR(TBL_Transportation[[#This Row],[예상]]="",TBL_Transportation[[#This Row],[실제]]=""),"",TBL_Transportation[[#This Row],[예상]]-TBL_Transportation[[#This Row],[실제]]) -> 
B88: 시외 게스트를 위한 교통편 | C88: ₩100.00 | E88: =IF(OR(TBL_Transportation[[#This Row],[예상]]="",TBL_Transportation[[#This Row],[실제]]=""),"",TBL_Transportation[[#This Row],[예상]]-TBL_Transportation[[#This Row],[실제]]) -> 
B89: 발렛 파킹 | C89: ₩50.00 | E89: =IF(OR(TBL_Transportation[[#This Row],[예상]]="",TBL_Transportation[[#This Row],[실제]]=""),"",TBL_Transportation[[#This Row],[예상]]-TBL_Transportation[[#This Row],[실제]]) -> 
B90: 잡비 | C90: ₩100.00 | E90: =IF(OR(TBL_Transportation[[#This Row],[예상]]="",TBL_Transportation[[#This Row],[실제]]=""),"",TBL_Transportation[[#This Row],[예상]]-TBL_Transportation[[#This Row],[실제]]) -> 
B91: 교통편 합계 | C91: =SUBTOTAL(109,TBL_Transportation[예상]) -> ₩450.00 | D91: =SUBTOTAL(109,TBL_Transportation[실제]) -> ₩0.00 | E91: =TBL_Transportation[[#Totals],[예상]]-TBL_Transportation[[#Totals],[실제]] -> ₩450.00
